[Event "Titled Tuesday Blitz August 22 Early 2023"]
[White "Blanco Ronquillo, Humberto L."]
[Black "Buraczewski, Rafal"]
[WhiteFideId "3504239"]
[BlackFideId "1155245"]
[WhiteElo "2702"]
[BlackElo "2117"]
[Result "1-0"]
[Round "5"]
[TimeControl "180+1"]
[Date "2023.08.22"]
[WhiteClock "0:00:40"]
[BlackClock "0:00:01"]
[Board "176"]

1. d4 {[%clk 0:03:00]}  Nf6 {[%clk 0:02:59]} 2. c4 {[%clk 0:03:01]}  e6 {[%clk 0:02:59]} 3. Nf3 {[%clk 0:03:01]}  b6 {[%clk 0:02:56]} 4. g3 {[%clk 0:03:01]}  Bb7 {[%clk 0:02:55]} 5. Bg2 {[%clk 0:03:01]}  d5 {[%clk 0:02:53]} 6. cxd5 {[%clk 0:02:52]}  exd5 {[%clk 0:02:52]} 7. O-O {[%clk 0:02:52]}  Be7 {[%clk 0:02:51]} 8. Nc3 {[%clk 0:02:51]}  Nbd7 {[%clk 0:02:51]} 9. Bf4 {[%clk 0:02:51]}  O-O {[%clk 0:02:50]} 10. Rc1 {[%clk 0:02:50]}  a6 {[%clk 0:02:43]} 11. Ne5 {[%clk 0:02:49]}  c5 {[%clk 0:02:28]} 12. Nxd7 {[%clk 0:02:24]}  Qxd7 {[%clk 0:02:21]} 13. Na4 {[%clk 0:02:24]}  Qb5 {[%clk 0:02:08]} 14. Bc7 {[%clk 0:02:08]}  Nd7 {[%clk 0:01:12]} 15. dxc5 {[%clk 0:02:00]}  Nxc5 {[%clk 0:01:12]} 16. b3 {[%clk 0:02:00]}  Nxa4 {[%clk 0:01:00]} 17. bxa4 {[%clk 0:02:01]}  Qa5 {[%clk 0:00:54]} 18. Rb1 {[%clk 0:01:14]}  Bc5 {[%clk 0:00:53]} 19. Qe1 {[%clk 0:01:14]}  Qxa4 {[%clk 0:00:49]} 20. Bxb6 {[%clk 0:01:14]}  Be7 {[%clk 0:00:17]} 21. Qd2 {[%clk 0:01:10]}  Bc6 {[%clk 0:00:11]} 22. Bxd5 {[%clk 0:01:05]}  Bb5 {[%clk 0:00:11]} 23. Rfd1 {[%clk 0:01:00]}  Bf6 {[%clk 0:00:11]} 24. e4 {[%clk 0:00:59]}  Rab8 {[%clk 0:00:09]} 25. Bd4 {[%clk 0:00:58]}  Bxd4 {[%clk 0:00:07]} 26. Qxd4 {[%clk 0:00:59]}  Qc2 {[%clk 0:00:07]} 27. Rbc1 {[%clk 0:00:57]}  Qe2 {[%clk 0:00:05]} 28. Rd2 {[%clk 0:00:52]}  Qg4 {[%clk 0:00:04]} 29. e5 {[%clk 0:00:49]}  Rbc8 {[%clk 0:00:04]} 30. Qxg4 {[%clk 0:00:47]}  Rxc1+ {[%clk 0:00:03]} 31. Rd1 {[%clk 0:00:40]}  Rcc8 {[%clk 0:00:01]} 1-0


[Site "https://www.chess.com"]

[Event "Titled Tuesday Blitz August 22 Early 2023"]
[White "Senft, Sean"]
[Black "Caspi, Israel"]
[WhiteFideId "2044960"]
[BlackFideId "2807394"]
[WhiteElo "2347"]
[BlackElo "2579"]
[Result "0-1"]
[Round "5"]
[TimeControl "180+1"]
[Date "2023.08.22"]
[WhiteClock "0:00:12"]
[BlackClock "0:00:38"]
[Board "180"]

1. d4 {[%clk 0:03:00]}  Nf6 {[%clk 0:02:47]} 2. c4 {[%clk 0:03:00]}  e6 {[%clk 0:02:46]} 3. Nc3 {[%clk 0:03:01]}  Bb4 {[%clk 0:02:45]} 4. Nf3 {[%clk 0:03:01]}  O-O {[%clk 0:02:38]} 5. Bg5 {[%clk 0:03:01]}  h6 {[%clk 0:02:26]} 6. Bh4 {[%clk 0:03:01]}  c5 {[%clk 0:02:26]} 7. e3 {[%clk 0:03:01]}  cxd4 {[%clk 0:02:08]} 8. exd4 {[%clk 0:03:01]}  Qa5 {[%clk 0:02:08]} 9. Bxf6 {[%clk 0:02:46]}  Bxc3+ {[%clk 0:02:06]} 10. bxc3 {[%clk 0:02:47]}  Qxc3+ {[%clk 0:02:03]} 11. Nd2 {[%clk 0:02:47]}  gxf6 {[%clk 0:02:03]} 12. Qg4+ {[%clk 0:02:46]}  Kh7 {[%clk 0:01:59]} 13. Rd1 {[%clk 0:02:32]}  Nc6 {[%clk 0:01:52]} 14. d5 {[%clk 0:00:43]}  Ne5 {[%clk 0:01:31]} 15. Qh4 {[%clk 0:00:33]}  Ng6 {[%clk 0:01:05]} 16. Qh5 {[%clk 0:00:19]}  Nf4 {[%clk 0:00:58]} 17. Qf3 {[%clk 0:00:18]}  Qe5+ {[%clk 0:00:54]} 18. Be2 {[%clk 0:00:17]}  Nxe2 {[%clk 0:00:48]} 19. Qxe2 {[%clk 0:00:17]}  Qxe2+ {[%clk 0:00:49]} 20. Kxe2 {[%clk 0:00:17]}  f5 {[%clk 0:00:47]} 21. Nf3 {[%clk 0:00:16]}  b6 {[%clk 0:00:46]} 22. d6 {[%clk 0:00:15]}  f6 {[%clk 0:00:44]} 23. a4 {[%clk 0:00:13]}  Ba6 {[%clk 0:00:42]} 24. Rc1 {[%clk 0:00:12]}  Rac8 {[%clk 0:00:43]} 25. Kd3 {[%clk 0:00:12]}  Rc5 {[%clk 0:00:43]} 26. Rc3 {[%clk 0:00:13]}  Rfc8 {[%clk 0:00:43]} 27. Rhc1 {[%clk 0:00:14]}  Rd5+ {[%clk 0:00:40]} 28. Ke3 {[%clk 0:00:13]}  Rxd6 {[%clk 0:00:40]} 29. Nd4 {[%clk 0:00:13]}  f4+ {[%clk 0:00:39]} 30. Ke4 {[%clk 0:00:12]}  Bb7+ {[%clk 0:00:39]} 31. Kd3 {[%clk 0:00:11]}  e5 {[%clk 0:00:40]} 32. c5 {[%clk 0:00:12]}  Rxd4+ {[%clk 0:00:38]} 33. Ke2 {[%clk 0:00:12]} 0-1


[Site "https://www.chess.com"]

[Event "Titled Tuesday Blitz August 22 Early 2023"]
[White "Aggelis, Nikolaos"]
[Black "Pavlidou, Ekaterini"]
[WhiteFideId "4213220"]
[BlackFideId "4213262"]
[WhiteElo "2578"]
[BlackElo "2346"]
[Result "1/2-1/2"]
[Round "5"]
[TimeControl "180+1"]
[Date "2023.08.22"]
[WhiteClock "0:00:10"]
[BlackClock "0:00:26"]
[Board "181"]

1. c4 {[%clk 0:03:00]}  e5 {[%clk 0:02:59]} 2. Nc3 {[%clk 0:02:48]}  Nc6 {[%clk 0:02:59]} 3. g3 {[%clk 0:02:45]}  g6 {[%clk 0:02:59]} 4. Bg2 {[%clk 0:02:44]}  Bg7 {[%clk 0:02:59]} 5. d3 {[%clk 0:02:45]}  d6 {[%clk 0:02:59]} 6. Nf3 {[%clk 0:02:45]}  f5 {[%clk 0:02:59]} 7. O-O {[%clk 0:02:46]}  h6 {[%clk 0:02:58]} 8. Rb1 {[%clk 0:02:46]}  a5 {[%clk 0:02:57]} 9. a3 {[%clk 0:02:45]}  Nge7 {[%clk 0:02:56]} 10. b4 {[%clk 0:02:46]}  axb4 {[%clk 0:02:54]} 11. axb4 {[%clk 0:02:47]}  Be6 {[%clk 0:02:53]} 12. b5 {[%clk 0:02:42]}  Nd4 {[%clk 0:02:48]} 13. Bb2 {[%clk 0:02:39]}  O-O {[%clk 0:02:43]} 14. e3 {[%clk 0:02:39]}  Nxf3+ {[%clk 0:02:38]} 15. Qxf3 {[%clk 0:02:25]}  c6 {[%clk 0:02:39]} 16. Qe2 {[%clk 0:02:18]}  d5 {[%clk 0:02:36]} 17. bxc6 {[%clk 0:02:18]}  bxc6 {[%clk 0:02:36]} 18. cxd5 {[%clk 0:02:18]}  cxd5 {[%clk 0:02:37]} 19. d4 {[%clk 0:02:06]}  Bc8 {[%clk 0:02:19]} 20. Rfd1 {[%clk 0:01:51]}  Ba6 {[%clk 0:02:13]} 21. Qd2 {[%clk 0:01:42]}  e4 {[%clk 0:02:08]} 22. Bf1 {[%clk 0:01:37]}  Nc6 {[%clk 0:02:08]} 23. Bxa6 {[%clk 0:01:36]}  Rxa6 {[%clk 0:02:08]} 24. Ra1 {[%clk 0:01:24]}  Na5 {[%clk 0:02:07]} 25. Qe2 {[%clk 0:01:19]}  Rff6 {[%clk 0:02:05]} 26. Ba3 {[%clk 0:01:17]}  Nc4 {[%clk 0:01:43]} 27. Bc5 {[%clk 0:01:15]}  Qa8 {[%clk 0:01:40]} 28. Rxa6 {[%clk 0:01:13]}  Rxa6 {[%clk 0:01:40]} 29. Rc1 {[%clk 0:01:09]}  Ra1 {[%clk 0:01:24]} 30. Qf1 {[%clk 0:01:07]}  Rxc1 {[%clk 0:01:16]} 31. Qxc1 {[%clk 0:01:08]}  Bf8 {[%clk 0:01:15]} 32. Bxf8 {[%clk 0:00:48]}  Kxf8 {[%clk 0:01:13]} 33. Ne2 {[%clk 0:00:48]}  g5 {[%clk 0:01:12]} 34. Qb1 {[%clk 0:00:46]}  Kg7 {[%clk 0:01:01]} 35. Qb4 {[%clk 0:00:41]}  Kg6 {[%clk 0:00:56]} 36. Kg2 {[%clk 0:00:40]}  Qa2 {[%clk 0:00:49]} 37. Qe7 {[%clk 0:00:25]}  Nxe3+ {[%clk 0:00:43]} 38. Kh1 {[%clk 0:00:11]}  Qb1+ {[%clk 0:00:33]} 39. Ng1 {[%clk 0:00:11]}  Ng4 {[%clk 0:00:27]} 40. Qe8+ {[%clk 0:00:10]}  Kg7 {[%clk 0:00:26]} 41. Qe7+ {[%clk 0:00:09]}  Kg6 {[%clk 0:00:26]} 42. Qe8+ {[%clk 0:00:10]}  Kg7 {[%clk 0:00:26]} 43. Qe7+ {[%clk 0:00:10]}  Kg6 {[%clk 0:00:26]} 1/2-1/2


[Site "https://www.chess.com"]

[Event "Titled Tuesday Blitz August 22 Early 2023"]
[White "Bifulco, Michel"]
[Black "brm72"]
[WhiteFideId "828580"]
[WhiteElo "2342"]
[BlackElo "2567"]
[Result "0-1"]
[Round "5"]
[TimeControl "180+1"]
[Date "2023.08.22"]
[WhiteClock "0:00:03"]
[BlackClock "0:01:32"]
[Board "183"]

1. d4 {[%clk 0:03:00]}  Nf6 {[%clk 0:03:00]} 2. c4 {[%clk 0:03:01]}  g6 {[%clk 0:03:00]} 3. Nc3 {[%clk 0:03:01]}  d5 {[%clk 0:03:00]} 4. Bf4 {[%clk 0:03:01]}  Bg7 {[%clk 0:03:00]} 5. e3 {[%clk 0:03:01]}  O-O {[%clk 0:02:58]} 6. cxd5 {[%clk 0:03:01]}  Nxd5 {[%clk 0:02:59]} 7. Nxd5 {[%clk 0:03:01]}  Qxd5 {[%clk 0:02:58]} 8. Bxc7 {[%clk 0:03:01]}  Bf5 {[%clk 0:02:44]} 9. Ne2 {[%clk 0:02:55]}  Nc6 {[%clk 0:02:40]} 10. Nc3 {[%clk 0:02:53]}  Qd7 {[%clk 0:02:40]} 11. Bg3 {[%clk 0:02:48]}  Rac8 {[%clk 0:02:38]} 12. Bb5 {[%clk 0:02:40]}  a6 {[%clk 0:02:37]} 13. Bxc6 {[%clk 0:02:39]}  Qxc6 {[%clk 0:02:38]} 14. O-O {[%clk 0:02:38]}  Rfd8 {[%clk 0:02:39]} 15. Qf3 {[%clk 0:02:33]}  Qb6 {[%clk 0:02:38]} 16. Nd5 {[%clk 0:02:27]}  Qe6 {[%clk 0:02:32]} 17. Nf4 {[%clk 0:02:12]}  Qb6 {[%clk 0:02:32]} 18. Nd5 {[%clk 0:01:55]}  Qe6 {[%clk 0:02:19]} 19. Nf4 {[%clk 0:01:54]}  Qd7 {[%clk 0:02:20]} 20. Rac1 {[%clk 0:01:49]}  e5 {[%clk 0:02:20]} 21. dxe5 {[%clk 0:01:44]}  Bxe5 {[%clk 0:02:20]} 22. Rxc8 {[%clk 0:01:40]}  Rxc8 {[%clk 0:02:21]} 23. Nd5 {[%clk 0:01:36]}  Qd6 {[%clk 0:02:00]} 24. Rd1 {[%clk 0:01:24]}  Rc2 {[%clk 0:01:36]} 25. Nb4 {[%clk 0:00:57]}  Rd2 {[%clk 0:01:36]} 26. Rc1 {[%clk 0:00:13]}  Bxg3 {[%clk 0:01:32]} 27. hxg3 {[%clk 0:00:03]}  Qxb4 {[%clk 0:01:32]} 0-1


[Site "https://www.chess.com"]

[Event "Titled Tuesday Blitz August 22 Early 2023"]
[White "Vaglio Munoz, Jaime"]
[Black "Kozin, Yuri"]
[WhiteFideId "6500145"]
[BlackFideId "4129920"]
[WhiteElo "2340"]
[BlackElo "2560"]
[Result "0-1"]
[Round "5"]
[TimeControl "180+1"]
[Date "2023.08.22"]
[WhiteClock "0:00:00"]
[BlackClock "0:00:15"]
[Board "184"]

1. Nf3 {[%clk 0:03:00]}  c5 {[%clk 0:02:58]} 2. c4 {[%clk 0:03:01]}  Nf6 {[%clk 0:02:57]} 3. b3 {[%clk 0:03:02]}  Nc6 {[%clk 0:02:55]} 4. Bb2 {[%clk 0:03:02]}  e6 {[%clk 0:02:55]} 5. g3 {[%clk 0:03:02]}  Be7 {[%clk 0:02:54]} 6. Bg2 {[%clk 0:03:02]}  O-O {[%clk 0:02:55]} 7. O-O {[%clk 0:03:02]}  d6 {[%clk 0:02:55]} 8. d4 {[%clk 0:03:01]}  cxd4 {[%clk 0:02:56]} 9. Nxd4 {[%clk 0:03:01]}  Ne5 {[%clk 0:02:56]} 10. h3 {[%clk 0:02:59]}  a6 {[%clk 0:02:56]} 11. Nc3 {[%clk 0:02:56]}  Qc7 {[%clk 0:02:57]} 12. Rc1 {[%clk 0:02:55]}  Bd7 {[%clk 0:02:56]} 13. f4 {[%clk 0:02:51]}  Ng6 {[%clk 0:02:54]} 14. e4 {[%clk 0:02:51]}  Rac8 {[%clk 0:02:52]} 15. Kh2 {[%clk 0:02:51]}  h5 {[%clk 0:02:51]} 16. Qe2 {[%clk 0:02:37]}  Qb8 {[%clk 0:02:44]} 17. Rce1 {[%clk 0:02:36]}  h4 {[%clk 0:02:39]} 18. g4 {[%clk 0:02:35]}  e5 {[%clk 0:02:21]} 19. Nf5 {[%clk 0:02:34]}  Bxf5 {[%clk 0:02:20]} 20. gxf5 {[%clk 0:02:34]}  Nxf4 {[%clk 0:02:20]} 21. Rxf4 {[%clk 0:02:03]}  exf4 {[%clk 0:02:20]} 22. Nd5 {[%clk 0:02:03]}  Nxd5 {[%clk 0:02:15]} 23. exd5 {[%clk 0:02:04]}  Bg5 {[%clk 0:01:58]} 24. f6 {[%clk 0:01:52]}  Rfe8 {[%clk 0:01:28]} 25. Qg4 {[%clk 0:01:51]}  Bh6 {[%clk 0:01:17]} 26. Re7 {[%clk 0:01:17]}  Rxe7 {[%clk 0:01:07]} 27. fxe7 {[%clk 0:01:18]}  Re8 {[%clk 0:01:07]} 28. Bf6 {[%clk 0:01:16]}  Qc7 {[%clk 0:01:04]} 29. Bxh4 {[%clk 0:01:06]}  Rxe7 {[%clk 0:00:59]} 30. Bxe7 {[%clk 0:01:05]}  Qxe7 {[%clk 0:01:00]} 31. Bf3 {[%clk 0:00:47]}  g6 {[%clk 0:00:55]} 32. h4 {[%clk 0:00:46]}  Kh7 {[%clk 0:00:51]} 33. h5 {[%clk 0:00:45]}  Qe3 {[%clk 0:00:44]} 34. hxg6+ {[%clk 0:00:44]}  fxg6 {[%clk 0:00:45]} 35. Qd7+ {[%clk 0:00:37]}  Kg8 {[%clk 0:00:42]} 36. Qe6+ {[%clk 0:00:35]}  Kh7 {[%clk 0:00:39]} 37. Qd7+ {[%clk 0:00:19]}  Bg7 {[%clk 0:00:39]} 38. Qh3+ {[%clk 0:00:17]}  Kg8 {[%clk 0:00:36]} 39. Qc8+ {[%clk 0:00:16]}  Bf8 {[%clk 0:00:33]} 40. Qe6+ {[%clk 0:00:16]}  Kg7 {[%clk 0:00:32]} 41. Qxe3 {[%clk 0:00:14]}  fxe3 {[%clk 0:00:32]} 42. Kg3 {[%clk 0:00:14]}  Kf6 {[%clk 0:00:31]} 43. Kf4 {[%clk 0:00:14]}  Bh6+ {[%clk 0:00:31]} 44. Ke4 {[%clk 0:00:14]}  a5 {[%clk 0:00:29]} 45. a3 {[%clk 0:00:13]}  b6 {[%clk 0:00:27]} 46. b4 {[%clk 0:00:14]}  Ke7 {[%clk 0:00:20]} 47. Bg4 {[%clk 0:00:05]}  Bg5 {[%clk 0:00:16]} 48. Kd3 {[%clk 0:00:05]}  Bf4 {[%clk 0:00:16]} 49. bxa5 {[%clk 0:00:04]}  bxa5 {[%clk 0:00:16]} 50. Ke4 {[%clk 0:00:00]}  g5 {[%clk 0:00:15]} 0-1


[Site "https://www.chess.com"]

[Event "Titled Tuesday Blitz August 22 Early 2023"]
[White "Mikhaylova, Irina"]
[Black "Ganiev, Roman"]
[WhiteFideId "4109040"]
[BlackFideId "4131452"]
[WhiteElo "2337"]
[BlackElo "2555"]
[Result "0-1"]
[Round "5"]
[TimeControl "180+1"]
[Date "2023.08.22"]
[WhiteClock "0:00:09"]
[BlackClock "0:00:12"]
[Board "186"]

1. Nf3 {[%clk 0:02:59]}  Nf6 {[%clk 0:02:56]} 2. c4 {[%clk 0:02:59]}  e6 {[%clk 0:02:55]} 3. g3 {[%clk 0:02:52]}  b6 {[%clk 0:02:55]} 4. Bg2 {[%clk 0:02:52]}  Bb7 {[%clk 0:02:56]} 5. O-O {[%clk 0:02:52]}  Be7 {[%clk 0:02:56]} 6. d4 {[%clk 0:02:52]}  O-O {[%clk 0:02:56]} 7. Nc3 {[%clk 0:02:52]}  Ne4 {[%clk 0:02:53]} 8. Bd2 {[%clk 0:02:48]}  Nxd2 {[%clk 0:02:51]} 9. Qxd2 {[%clk 0:02:48]}  d6 {[%clk 0:02:48]} 10. Ne1 {[%clk 0:02:29]}  Bxg2 {[%clk 0:02:47]} 11. Nxg2 {[%clk 0:02:29]}  Nc6 {[%clk 0:02:38]} 12. d5 {[%clk 0:02:17]}  Ne5 {[%clk 0:02:38]} 13. b3 {[%clk 0:02:13]}  Qd7 {[%clk 0:02:26]} 14. f4 {[%clk 0:01:52]}  Ng4 {[%clk 0:02:21]} 15. h3 {[%clk 0:01:37]}  Nf6 {[%clk 0:02:15]} 16. g4 {[%clk 0:01:18]}  exd5 {[%clk 0:01:19]} 17. cxd5 {[%clk 0:01:16]}  b5 {[%clk 0:01:19]} 18. b4 {[%clk 0:01:09]}  c6 {[%clk 0:00:34]} 19. e4 {[%clk 0:00:56]}  cxd5 {[%clk 0:00:35]} 20. exd5 {[%clk 0:00:56]}  Bd8 {[%clk 0:00:34]} 21. Kh2 {[%clk 0:00:52]}  Re8 {[%clk 0:00:33]} 22. Rfe1 {[%clk 0:00:47]}  Bb6 {[%clk 0:00:31]} 23. Rxe8+ {[%clk 0:00:41]}  Rxe8 {[%clk 0:00:31]} 24. Re1 {[%clk 0:00:42]}  a6 {[%clk 0:00:31]} 25. a3 {[%clk 0:00:41]}  h6 {[%clk 0:00:15]} 26. Re2 {[%clk 0:00:27]}  Rxe2 {[%clk 0:00:13]} 27. Qxe2 {[%clk 0:00:27]}  Bd4 {[%clk 0:00:14]} 28. Ne4 {[%clk 0:00:21]}  Qe7 {[%clk 0:00:10]} 29. Nxf6+ {[%clk 0:00:21]}  Qxf6 {[%clk 0:00:11]} 30. Qe8+ {[%clk 0:00:19]}  Kh7 {[%clk 0:00:11]} 31. Qe4+ {[%clk 0:00:19]}  g6 {[%clk 0:00:11]} 32. g5 {[%clk 0:00:18]}  hxg5 {[%clk 0:00:10]} 33. fxg5 {[%clk 0:00:18]}  Be5+ {[%clk 0:00:11]} 34. Kg1 {[%clk 0:00:17]}  Qxg5 {[%clk 0:00:10]} 35. Qe2 {[%clk 0:00:10]}  Qc1+ {[%clk 0:00:10]} 36. Qf1 {[%clk 0:00:08]}  Bd4+ {[%clk 0:00:09]} 37. Ne3 {[%clk 0:00:07]}  Bxe3+ {[%clk 0:00:10]} 38. Kg2 {[%clk 0:00:07]}  Qxf1+ {[%clk 0:00:09]} 39. Kxf1 {[%clk 0:00:08]}  Bc1 {[%clk 0:00:10]} 40. Ke2 {[%clk 0:00:08]}  Bxa3 {[%clk 0:00:10]} 41. Kf3 {[%clk 0:00:09]}  Bxb4 {[%clk 0:00:11]} 42. Ke4 {[%clk 0:00:10]}  Bc5 {[%clk 0:00:12]} 43. Kf4 {[%clk 0:00:09]}  Kg7 {[%clk 0:00:12]} 0-1


[Site "https://www.chess.com"]

[Event "Titled Tuesday Blitz August 22 Early 2023"]
[White "micke12a"]
[Black "Tikhonov, Viacheslav"]
[BlackFideId "44196407"]
[WhiteElo "2324"]
[BlackElo "2501"]
[Result "0-1"]
[Round "5"]
[TimeControl "180+1"]
[Date "2023.08.22"]
[WhiteClock "0:01:51"]
[BlackClock "0:01:58"]
[Board "188"]

1. e4 {[%clk 0:03:00]}  c5 {[%clk 0:03:00]} 2. Nc3 {[%clk 0:03:00]}  Nc6 {[%clk 0:02:58]} 3. Bb5 {[%clk 0:03:00]}  Nd4 {[%clk 0:02:58]} 4. Nf3 {[%clk 0:03:00]}  e6 {[%clk 0:02:57]} 5. Bc4 {[%clk 0:02:58]}  a6 {[%clk 0:02:47]} 6. Ne2 {[%clk 0:02:57]}  Nxf3+ {[%clk 0:02:46]} 7. gxf3 {[%clk 0:02:56]}  d5 {[%clk 0:02:47]} 8. exd5 {[%clk 0:02:54]}  b5 {[%clk 0:02:45]} 9. Bd3 {[%clk 0:02:49]}  c4 {[%clk 0:02:44]} 10. dxe6 {[%clk 0:02:49]}  cxd3 {[%clk 0:02:43]} 11. exf7+ {[%clk 0:02:49]}  Kxf7 {[%clk 0:02:44]} 12. cxd3 {[%clk 0:02:45]}  Qe7 {[%clk 0:02:29]} 13. O-O {[%clk 0:02:45]}  Bh3 {[%clk 0:02:27]} 14. Re1 {[%clk 0:02:44]}  Re8 {[%clk 0:02:20]} 15. d4 {[%clk 0:02:38]}  Qf6 {[%clk 0:02:05]} 16. Qb3+ {[%clk 0:02:15]}  Qe6 {[%clk 0:02:04]} 17. Qxe6+ {[%clk 0:02:03]}  Rxe6 {[%clk 0:02:02]} 18. d3 {[%clk 0:02:02]}  Bb4 {[%clk 0:02:00]} 19. d5 {[%clk 0:01:51]}  Re8 {[%clk 0:01:58]} 0-1


[Site "https://www.chess.com"]

[Event "Titled Tuesday Blitz August 22 Early 2023"]
[White "Afanasieva, Alexandra"]
[Black "FromTexas54"]
[WhiteFideId "34126926"]
[WhiteElo "2318"]
[BlackElo "2496"]
[Result "1-0"]
[Round "5"]
[TimeControl "180+1"]
[Date "2023.08.22"]
[WhiteClock "0:00:59"]
[BlackClock "0:00:00"]
[Board "190"]

1. e4 {[%clk 0:03:00]}  g6 {[%clk 0:02:59]} 2. d4 {[%clk 0:03:01]}  Bg7 {[%clk 0:02:59]} 3. Nc3 {[%clk 0:03:01]}  d6 {[%clk 0:03:00]} 4. Nf3 {[%clk 0:03:00]}  Nc6 {[%clk 0:02:59]} 5. Bg5 {[%clk 0:02:58]}  h6 {[%clk 0:02:59]} 6. Be3 {[%clk 0:02:58]}  Nf6 {[%clk 0:02:57]} 7. h3 {[%clk 0:02:59]}  O-O {[%clk 0:02:52]} 8. Qd2 {[%clk 0:02:58]}  Kh7 {[%clk 0:02:52]} 9. g4 {[%clk 0:02:56]}  e5 {[%clk 0:02:52]} 10. d5 {[%clk 0:02:51]}  Ne7 {[%clk 0:02:52]} 11. g5 {[%clk 0:02:50]}  hxg5 {[%clk 0:02:51]} 12. Nxg5+ {[%clk 0:02:46]}  Kg8 {[%clk 0:02:51]} 13. h4 {[%clk 0:02:46]}  Nh5 {[%clk 0:02:50]} 14. Be2 {[%clk 0:02:46]}  Nf4 {[%clk 0:02:49]} 15. Bxf4 {[%clk 0:02:37]}  exf4 {[%clk 0:02:50]} 16. h5 {[%clk 0:02:38]}  Be5 {[%clk 0:01:52]} 17. O-O-O {[%clk 0:02:21]}  gxh5 {[%clk 0:01:21]} 18. Rdg1 {[%clk 0:02:14]}  Ng6 {[%clk 0:01:20]} 19. Bxh5 {[%clk 0:02:13]}  Qf6 {[%clk 0:01:19]} 20. Nh7 {[%clk 0:01:57]}  Qg7 {[%clk 0:01:02]} 21. Nxf8 {[%clk 0:01:49]}  Kxf8 {[%clk 0:01:03]} 22. Bxg6 {[%clk 0:01:25]}  fxg6 {[%clk 0:01:04]} 23. f3 {[%clk 0:01:21]}  Bd7 {[%clk 0:01:00]} 24. Rg2 {[%clk 0:01:16]}  g5 {[%clk 0:00:33]} 25. Rgh2 {[%clk 0:01:07]}  Re8 {[%clk 0:00:26]} 26. Rh7 {[%clk 0:01:03]}  Kf7 {[%clk 0:00:07]} 27. Rxg7+ {[%clk 0:00:59]}  Bxg7 {[%clk 0:00:07]} 28. Qh2 {[%clk 0:00:58]}  Rh8 {[%clk 0:00:07]} 29. Qxh8 {[%clk 0:00:58]}  Bxh8 {[%clk 0:00:00]} 30. Rxh8 {[%clk 0:00:59]} 1-0


[Site "https://www.chess.com"]

[Event "Titled Tuesday Blitz August 22 Early 2023"]
[White "Chernikov, Vladimir"]
[Black "Coelho, Ramyres Santana"]
[WhiteFideId "14112914"]
[BlackFideId "2120690"]
[WhiteElo "2489"]
[BlackElo "2314"]
[Result "0-1"]
[Round "5"]
[TimeControl "180+1"]
[Date "2023.08.22"]
[WhiteClock "0:00:49"]
[BlackClock "0:00:55"]
[Board "192"]

1. b3 {[%clk 0:03:00]}  e6 {[%clk 0:02:55]} 2. Bb2 {[%clk 0:03:01]}  Nf6 {[%clk 0:02:53]} 3. Nf3 {[%clk 0:03:01]}  Be7 {[%clk 0:02:48]} 4. e3 {[%clk 0:03:01]}  O-O {[%clk 0:02:48]} 5. d4 {[%clk 0:03:02]}  d5 {[%clk 0:02:47]} 6. Bd3 {[%clk 0:03:02]}  c5 {[%clk 0:02:47]} 7. Nbd2 {[%clk 0:03:03]}  cxd4 {[%clk 0:02:48]} 8. exd4 {[%clk 0:03:02]}  b6 {[%clk 0:02:49]} 9. O-O {[%clk 0:03:01]}  Bb7 {[%clk 0:02:50]} 10. Qe2 {[%clk 0:03:02]}  Nbd7 {[%clk 0:02:50]} 11. Ne5 {[%clk 0:03:02]}  Rc8 {[%clk 0:02:51]} 12. f4 {[%clk 0:03:00]}  Nxe5 {[%clk 0:02:51]} 13. fxe5 {[%clk 0:02:56]}  Ne4 {[%clk 0:02:42]} 14. Nxe4 {[%clk 0:02:54]}  dxe4 {[%clk 0:02:43]} 15. Bxe4 {[%clk 0:02:54]}  Bxe4 {[%clk 0:02:42]} 16. Qxe4 {[%clk 0:02:55]}  Qd5 {[%clk 0:02:40]} 17. Qxd5 {[%clk 0:02:51]}  exd5 {[%clk 0:02:41]} 18. Rf2 {[%clk 0:02:46]}  f6 {[%clk 0:02:37]} 19. Rc1 {[%clk 0:02:35]}  fxe5 {[%clk 0:02:36]} 20. Rxf8+ {[%clk 0:02:35]}  Bxf8 {[%clk 0:02:33]} 21. dxe5 {[%clk 0:02:34]}  Bc5+ {[%clk 0:02:32]} 22. Kh1 {[%clk 0:02:32]}  Be3 {[%clk 0:02:31]} 23. Rf1 {[%clk 0:02:24]}  Rxc2 {[%clk 0:02:16]} 24. e6 {[%clk 0:02:18]}  Bc5 {[%clk 0:02:10]} 25. Be5 {[%clk 0:01:59]}  Re2 {[%clk 0:02:07]} 26. Bb8 {[%clk 0:01:44]}  a5 {[%clk 0:01:52]} 27. g3 {[%clk 0:01:35]}  Rxe6 {[%clk 0:01:51]} 28. Rd1 {[%clk 0:01:35]}  d4 {[%clk 0:01:47]} 29. Rd2 {[%clk 0:01:35]}  Re8 {[%clk 0:01:40]} 30. Bf4 {[%clk 0:01:34]}  Kf7 {[%clk 0:01:38]} 31. Kg2 {[%clk 0:01:33]}  Kf6 {[%clk 0:01:38]} 32. Kf3 {[%clk 0:01:34]}  h6 {[%clk 0:01:37]} 33. h4 {[%clk 0:01:33]}  g5 {[%clk 0:01:37]} 34. hxg5+ {[%clk 0:01:30]}  hxg5 {[%clk 0:01:38]} 35. Bc7 {[%clk 0:01:28]}  Rc8 {[%clk 0:01:32]} 36. Bd6 {[%clk 0:01:08]}  Bxd6 {[%clk 0:01:28]} 37. Rxd4 {[%clk 0:01:09]}  Rc3+ {[%clk 0:01:22]} 38. Ke2 {[%clk 0:01:04]}  Bxg3 {[%clk 0:01:20]} 39. Rd8 {[%clk 0:00:59]}  Be5 {[%clk 0:01:12]} 40. Kd2 {[%clk 0:00:57]}  Rc6 {[%clk 0:01:09]} 41. Rf8+ {[%clk 0:00:57]}  Kg6 {[%clk 0:01:08]} 42. Ke3 {[%clk 0:00:57]}  Rf6 {[%clk 0:01:05]} 43. Rc8 {[%clk 0:00:56]}  Kf5 {[%clk 0:01:05]} 44. Rc2 {[%clk 0:00:54]}  g4 {[%clk 0:01:05]} 45. Rf2+ {[%clk 0:00:54]}  Kg5 {[%clk 0:01:04]} 46. Rg2 {[%clk 0:00:54]}  g3 {[%clk 0:01:03]} 47. Ke4 {[%clk 0:00:54]}  Bc7 {[%clk 0:01:01]} 48. Rc2 {[%clk 0:00:53]}  Bd6 {[%clk 0:00:58]} 49. Rc8 {[%clk 0:00:51]}  g2 {[%clk 0:00:55]} 50. Rg8+ {[%clk 0:00:49]}  Rg6 {[%clk 0:00:55]} 0-1


[Site "https://www.chess.com"]